fUSD/lending_fUSD_20240116
["ID","MTS","AMOUNT","RATE_DAILY","PERIOD"]
[311806162,1705420268024,-339.578331,0.00030287,2]
[311806163,1705420268033,-171.659175,0.00030287,2]
[311806164,1705420268043,-2021.392592,0.00030287,2]
[311806165,1705420268052,-199.28805,0.00030287,2]
[311806166,1705420268061,-171.397116,0.00030287,2]
[311806167,1705420268071,-1000.0,0.000303,2]
[311806168,1705420268083,-161.03687417,0.00030303,7]
[311806169,1705420268092,-160.51388107,0.00030322,7]
[311806170,1705420268103,-160.43807625,0.00030324,7]
[311806171,1705420268117,-940.88,0.00030337,2]
[311806172,1705420268126,-940.88,0.00030337,2]
[311806173,1705420268136,-401.38,0.00030337,2]
[311806174,1705420268145,-940.88,0.00030337,2]
[311806175,1705420268154,-940.88,0.00030337,2]
[311806176,1705420268164,-940.88,0.00030337,2]
[311806177,1705420268173,-1870.9,0.00030337,2]
[311806178,1705420268183,-152.17208897,0.00030375,7]
[311806179,1705420268193,-281.14819926,0.0003038,7]
[311806180,1705420268203,-500.0,0.00030384,10]
[311806181,1705420268213,-500.0,0.00030384,2]
[311806182,1705420268223,-1000.0,0.00030387,7]
[311806183,1705420268232,-1000.0,0.00030387,7]
[311806184,1705420268242,-1000.0,0.00030387,7]
[311806185,1705420268251,-1000.0,0.00030387,7]
[311806186,1705420268261,-1000.0,0.00030387,7]
[311806187,1705420268271,-1000.0,0.00030387,7]
[311806188,1705420268280,-1000.0,0.00030387,7]
[311806189,1705420268290,-1000.0,0.00030387,7]
[311806190,1705420268299,-150.12913908,0.000304,2]
[311806191,1705420268309,-151.96506507,0.000304,2]
[311806192,1705420268319,-151.0,0.000304,2]
[311806193,1705420268330,-394.0,0.000304,2]
[311806194,1705420268339,-1000.0,0.000304,3]
[311806195,1705420268348,-158.06699696,0.00030402,7]
[311806196,1705420268358,-220.0,0.0003041,2]
[311806197,1705420268368,-219.0,0.0003041,2]
[311806198,1705420268377,-160.43807625,0.0003047,7]
[311806199,1705420268387,-160.51388107,0.00030498,7]
[311806200,1705420268397,-593.0,0.000305,19]
[311806201,1705420268407,-154.060816,0.00030519,2]
[311806202,1705420268416,-405.762548,0.00030519,2]
[311806203,1705420268425,-194.599356,0.00030519,2]
[311806204,1705420268434,-390.449841,0.00030519,2]
[311806205,1705420268444,-375.463967,0.00030519,2]
[311806206,1705420268454,-258.619881,0.00030519,2]
[311806207,1705420268463,-202.749623,0.00030519,2]
[311806208,1705420268474,-250.309312,0.00030519,2]
[311806209,1705420268484,-1534.585124,0.00030519,2]
[311806210,1705420268494,-1712.035141,0.00030519,2]
[311806211,1705420268504,-3621.497466,0.00030519,2]
[311806212,1705420268514,-182.98051,0.00030519,2]
[311806213,1705420268523,-196.942968,0.00030519,2]
[311806214,1705420268533,-152.062218,0.00030519,2]
[311806215,1705420268542,-500.0,0.00030562,2]
[311806216,1705420268552,-170.0786207,0.00030566,7]
[311806217,1705420268562,-177.63074677,0.00030629,7]
[311806218,1705420268573,-152.0,0.00030645,11]
[311806219,1705420268584,-233.24,0.00030662,2]
[311806220,1705420268594,-383.646281,0.00030665,2]
[311806221,1705420268603,-316.825341,0.00030665,2]
[311806222,1705420268613,-783.97912,0.00030665,2]
[311806223,1705420268622,-3083.50584,0.00030665,2]
[311806224,1705420268632,-322.396434,0.00030665,2]
[311806225,1705420268641,-589.631837,0.00030665,2]
[311806226,1705420268650,-1502.644202,0.00030665,2]
[311806227,1705420268660,-246.334442,0.00030665,2]
[311806228,1705420268669,-375.387887,0.00030665,2]
[311806229,1705420268679,-1001.762801,0.00030665,2]
[311806230,1705420268689,-339.578331,0.00030665,2]
[311806231,1705420268698,-2021.392592,0.00030665,2]
[311806232,1705420268708,-199.28805,0.00030665,2]
[311806233,1705420268718,-150.0,0.00030685,2]
[311806234,1705420268728,-14858.0,0.000307,2]
[311806235,1705420268738,-157.52515317,0.000307,4]
[311806236,1705420268748,-152.17208897,0.00030737,7]
[311806237,1705420268758,-281.14819926,0.00030749,7]
[311806238,1705420268768,-281.14819926,0.0003076,7]
[311806239,1705420268777,-171.397115,0.00030792,2]
[311806240,1705420268786,-171.659175,0.00030792,2]
[311806241,1705420268796,-281.14819926,0.00030799,7]
[311806242,1705420268806,-160.43807625,0.00030799,7]
[311806243,1705420268822,-160.51388107,0.00030808,7]
[311806244,1705420268837,-152.17208897,0.00030834,7]
[311806245,1705420268846,-169.56433941,0.00030863,7]
[311806246,1705420268862,-281.14819926,0.00030867,7]
[311806247,1705420268872,-301.0,0.00030881,2]
[311806248,1705420268883,-15898.06763767,0.000309,2]
[311806249,1705420268893,-500.0,0.00030932,2]
[311806250,1705420268903,-160.43807625,0.00030933,7]
[311806251,1705420268913,-1000.0,0.0003094,7]
[311806252,1705420268923,-300.18,0.0003098,2]
[311806253,1705420268933,-500.0,0.00030987,2]
[311806254,1705420268942,-1000.0,0.00030999,2]
[311806255,1705420268958,-1000.0,0.00030999,3]
[311806256,1705420268969,-1000.0,0.00030999,4]
[311806257,1705420268979,-1000.0,0.00030999,5]
[311806258,1705420268988,-100000.0,0.00031,2]
[311806259,1705420268997,-2500.0,0.00031,7]
[311806260,1705420269007,-2612.34234271,0.00031,4]
[311806261,1705420269017,-7601.31352224,0.00031,2]
[311806262,1705420269030,-369.59723894,0.00031,2]
[311806263,1705420269040,-300.0,0.00031,32]
[311806264,1705420269050,-300.0,0.00031,2]
[311806265,1705420269060,-1624.0099086,0.00031,7]
[311806266,1705420269069,-20000.0,0.00031,2]
[311806267,1705420269079,-2000.0,0.00031,10]
[311806268,1705420269088,-2000.0,0.00031,2]
[311806269,1705420269098,-462.49839991,0.00031,15]
[311806270,1705420269108,-1400.0,0.00031,3]
[311806271,1705420269118,-1000.0,0.00031,2]
[311806272,1705420269127,-593.0,0.00031,19]
[311806273,1705420269138,-509.380642,0.00031,2]
[311806274,1705420269147,-1299.2570832,0.00031,2]
[311806275,1705420269161,-300.0,0.00031,3]
[311806276,1705420269171,-156.520577,0.00031,3]
[311806277,1705420269180,-152.17208897,0.00031015,7]
[311806278,1705420269195,-281.14819926,0.0003104,7]
[311806279,1705420269205,-749.69,0.00031043,2]
[311806280,1705420269215,-383.646281,0.00031044,2]
[311806281,1705420269225,-316.825341,0.00031044,2]
[311806282,1705420269236,-783.97912,0.00031044,2]
[311806283,1705420269245,-3083.50584,0.00031044,2]
[311806284,1705420269255,-322.396434,0.00031044,2]
[311806285,1705420269267,-589.631837,0.00031044,2]
[311806286,1705420269277,-1502.644202,0.00031044,2]
[311806287,1705420269290,-246.334442,0.00031044,2]
[311806288,1705420269300,-375.387887,0.00031044,2]
[311806289,1705420269310,-1001.762801,0.00031044,2]
[311806290,1705420269319,-339.578331,0.00031044,2]
[311806291,1705420269330,-2021.392592,0.00031044,2]
[311806292,1705420269340,-199.28805,0.00031044,2]
[311806293,1705420269350,-175.258247,0.00031044,2]
[311806294,1705420269359,-153.84,0.0003105,2]
[311806295,1705420269369,-1000.0,0.00031071,2]
[311806296,1705420269379,-152.0,0.00031089,12]
[311806297,1705420269389,-152.17208897,0.0003109,7]
[311806298,1705420269398,-2000.0,0.000311,2]
[311806299,1705420269407,-2014.18,0.000311,2]
[311806300,1705420269417,-170.0786207,0.00031107,7]
[311806301,1705420269426,-2081.1286639,0.00031111,10]
[311806302,1705420269436,-155.0,0.00031159,7]
[311806303,1705420269445,-170.0786207,0.0003117,7]
[311806304,1705420269454,-916.55096289,0.00031216,2]
[311806305,1705420269466,-150.0,0.00031233,2]
[311806306,1705420269476,-170.0786207,0.00031262,7]
[311806307,1705420269485,-171.397115,0.00031296,2]
[311806308,1705420269495,-171.659175,0.00031296,2]
[311806309,1705420269505,-152.08,0.000313,2]
[311806310,1705420269514,-152.08,0.000313,2]
[311806311,1705420269524,-152.08,0.000313,2]
[311806312,1705420269534,-152.08,0.000313,2]
[311806313,1705420269544,-152.08,0.000313,2]
[311806314,1705420269554,-152.08,0.000313,2]
[311806315,1705420269564,-152.08,0.000313,2]
[311806316,1705420269574,-152.08,0.000313,2]
[311806317,1705420269585,-152.08,0.000313,2]
[311806318,1705420269594,-152.08,0.000313,2]
[311806319,1705420269604,-152.08,0.000313,2]
[311806320,1705420269614,-152.08,0.000313,2]
[311806321,1705420269625,-157.78,0.000313,2]
[311806322,1705420269635,-157.78,0.000313,2]
[311806323,1705420269645,-157.78,0.000313,2]
[311806324,1705420269655,-157.78,0.000313,2]
[311806325,1705420269666,-157.78,0.000313,2]
[311806326,1705420269676,-157.78,0.000313,2]
[311806327,1705420269686,-157.78,0.000313,2]
[311806328,1705420269697,-157.78,0.000313,2]
[311806329,1705420269708,-157.78,0.000313,2]
[311806330,1705420269719,-157.78,0.000313,2]
[311806331,1705420269730,-157.78,0.000313,2]
[311806332,1705420269740,-157.78,0.000313,2]
[311806333,1705420269750,-488.07,0.0003131,2]
[311806334,1705420269761,-1000.0,0.00031354,7]
[311806335,1705420269771,-1000.0,0.00031354,7]
[311806336,1705420269782,-1000.0,0.00031354,7]
[311806337,1705420269793,-1000.0,0.00031354,7]
[311806338,1705420269992,-1000.0,0.00031354,7]
[311806339,1705420270002,-1000.0,0.00031354,7]
[311806340,1705420270012,-1000.0,0.00031354,7]
[311806341,1705420270022,-1000.0,0.00031354,7]
[311806342,1705420270032,-152.17208897,0.00031385,7]
[311806343,1705420270042,-492.0,0.00031388,3]
[311806344,1705420270051,-383.646281,0.00031422,2]
[311806345,1705420270061,-316.825341,0.00031422,2]
[311806346,1705420270071,-783.97912,0.00031422,2]
[311806347,1705420270082,-3083.50584,0.00031422,2]
[311806348,1705420270091,-322.396434,0.00031422,2]
[311806349,1705420270101,-589.631837,0.00031422,2]
[311806350,1705420270111,-1502.644202,0.00031422,2]
[311806351,1705420270121,-246.334442,0.00031422,2]
[311806352,1705420270130,-375.387887,0.00031422,2]
[311806353,1705420270140,-1001.762801,0.00031422,2]
[311806354,1705420270150,-339.578331,0.00031422,2]
[311806355,1705420270159,-2021.392592,0.00031422,2]
[311806356,1705420270173,-199.28805,0.00031422,2]
[311806357,1705420270184,-8491.96894414,0.0003143,4]
[311806358,1705420270194,-281.14819926,0.00031455,7]
[311806359,1705420270204,-500.0,0.0003148,10]
[311806360,1705420270215,-500.0,0.0003148,2]
[311806361,1705420270225,-281.14819926,0.00031492,7]
[311806362,1705420270235,-2500.0,0.000315,7]
[311806363,1705420270245,-500.0,0.000315,2]
[311806364,1705420270255,-593.0,0.000315,20]
[311806365,1705420270266,-151.0,0.000315,2]
[311806366,1705420270276,-8000.0,0.000315,2]
[311806367,1705420270286,-394.0,0.000315,2]
[311806368,1705420270296,-1807.79,0.00031507,2]
[311806369,1705420270306,-155.0,0.00031507,2]
[311806370,1705420270316,-152.17208897,0.0003153,7]
[311806371,1705420270329,-152.0,0.00031534,13]
[311806372,1705420270341,-220.0,0.0003156,2]
[311806373,1705420270352,-219.0,0.0003156,2]
[311806374,1705420270363,-174.38782553,0.00031591,7]
[311806375,1705420270375,-161.03687418,0.00031624,7]
[311806376,1705420270386,-281.14819926,0.00031625,7]
[311806377,1705420270397,-156.61193907,0.00031642,7]
[311806378,1705420270413,-295.91,0.00031644,2]
[311806379,1705420270431,-281.14819926,0.00031658,7]
[311806380,1705420270443,-169.56433941,0.00031696,7]
[311806381,1705420270453,-155.70351298,0.000317,7]
[311806382,1705420270463,-151714.29,0.000317,2]
[311806383,1705420270474,-281.14819926,0.00031735,7]
[311806384,1705420270483,-150.0,0.00031781,2]
[311806385,1705420270493,-205.0,0.00031781,16]
[311806386,1705420270504,-151.0,0.00031788,120]
[311806387,1705420270514,-155.0,0.00031796,4]
[311806388,1705420270525,-1010.0,0.000318,7]
[311806389,1705420270535,-1033.46,0.000318,8]
[311806390,1705420270545,-56449.5879618,0.000318,3]
[311806391,1705420270561,-383.646281,0.00031801,2]
[311806392,1705420270571,-316.825341,0.00031801,2]
[311806393,1705420270584,-783.97912,0.00031801,2]
[311806394,1705420270596,-3083.50584,0.00031801,2]
[311806395,1705420270605,-322.396434,0.00031801,2]
[311806396,1705420270616,-589.631837,0.00031801,2]
[311806397,1705420270626,-1502.644202,0.00031801,2]
[311806398,1705420270636,-246.334442,0.00031801,2]
[311806399,1705420270647,-375.387887,0.00031801,2]
[311806400,1705420270657,-1001.762801,0.00031801,2]
[311806401,1705420270666,-339.578331,0.00031801,2]
[311806402,1705420270676,-2021.392592,0.00031801,2]
[311806403,1705420270686,-199.28805,0.00031801,2]
[311806404,1705420270696,-175.258247,0.00031801,2]
[311806405,1705420270705,-171.397115,0.00031801,2]
[311806406,1705420270715,-171.921236,0.00031801,2]
[311806407,1705420270725,-171.659175,0.00031801,2]
[311806408,1705420270735,-171.397116,0.00031801,2]
[311806409,1705420270745,-177.63074677,0.00031814,7]
[311806410,1705420270756,-281.14819926,0.00031871,7]
[311806411,1705420270766,-160.43807625,0.00031876,7]
[311806412,1705420270776,-500.0,0.00031897,2]
[311806413,1705420270787,-262.0,0.000319,120]
[311806414,1705420270797,-300.0,0.000319,2]
[311806415,1705420270808,-664.0,0.000319,11]
[311806416,1705420270818,-179.0,0.00031904,2]
[311806417,1705420270830,-187.0,0.00031904,2]
[311806418,1705420270840,-462.35,0.00031906,2]
[311806419,1705420270850,-281.14819926,0.00031915,7]
[311806420,1705420270861,-281.14819926,0.00031926,7]
[311806421,1705420270871,-152.17208897,0.00031955,7]
[311806422,1705420270881,-300.18,0.0003196,2]
[311806423,1705420270890,-153.84,0.00031963,2]
[311806424,1705420270900,-152.17208897,0.00031967,7]
[311806425,1705420270910,-160.43807625,0.0003197,7]
[311806426,1705420270920,-152.0,0.00031979,14]
[311806427,1705420270931,-500.0,0.00031987,2]
[311806428,1705420270940,-500.0,0.00031987,3]
[311806429,1705420270951,-174.38782553,0.00031988,7]
[311806430,1705420270963,-835.0,0.00031989,2]
[311806431,1705420270973,-945.0,0.00031989,2]
[311806432,1705420270983,-315.0,0.00031989,2]
[311806433,1705420270993,-874.0,0.00031989,2]
[311806434,1705420271003,-2904.0,0.00031989,2]
[311806435,1705420271014,-19697.0,0.00031989,2]
[311806436,1705420271023,-2272.0,0.00031989,2]
[311806437,1705420271033,-1029.0,0.00031989,2]
[311806438,1705420271042,-100000.0,0.00032,2]
[311806439,1705420271053,-150.0,0.00032,7]
[311806440,1705420271063,-14142.32157127,0.00032,7]
[311806441,1705420271072,-297.1247831,0.00032,4]
[311806442,1705420271084,-16418.66417336,0.00032,2]
[311806443,1705420271094,-1045.8397881,0.00032,2]
[311806444,1705420271103,-600.0,0.00032,33]
[311806445,1705420271113,-1957.98005811,0.00032,2]
[311806446,1705420271123,-928.99373517,0.00032,4]
[311806447,1705420271132,-164.0,0.00032,2]
[311806448,1705420271142,-164.0,0.00032,2]
[311806449,1705420271152,-1166.66810276,0.00032,3]
[311806450,1705420271162,-299.99999906,0.00032,33]
[311806451,1705420271171,-2000.0,0.00032,2]
[311806452,1705420271181,-10000.0,0.00032,15]
[311806453,1705420271191,-219130.76773663,0.00032,4]
[311806454,1705420271201,-72160.848,0.00032,2]
[311806455,1705420271211,-103021.7758,0.00032,30]
[311806456,1705420271221,-593.0,0.00032,20]
[311806457,1705420271231,-1299.2570832,0.00032,2]
[311806458,1705420271240,-300.0,0.00032,5]
[311806459,1705420271250,-281.14819926,0.00032006,7]
[311806460,1705420271259,-170.0786207,0.00032012,7]
[311806461,1705420271269,-749.69,0.00032021,2]
[311806462,1705420271279,-500.0,0.00032028,2]
[311806463,1705420271288,-152.17208897,0.0003204,7]
[311806464,1705420271298,-150.0,0.0003205,3]
[311806465,1705420271308,-281.14819926,0.00032061,7]
[311806466,1705420271318,-174.38782554,0.00032081,7]
[311806467,1705420271328,-2000.0,0.000321,2]
[311806468,1705420271338,-1000.0,0.00032143,2]
[311806469,1705420271347,-160.51388111,0.00032167,7]
[311806470,1705420271357,-281.14819926,0.00032175,7]
[311806471,1705420271367,-2014.18,0.000322,2]
[311806472,1705420271377,-152.17208897,0.00032211,7]
[311806473,1705420271386,-281.14819926,0.00032224,7]
[311806474,1705420271396,-152.17208897,0.00032252,7]
[311806475,1705420271406,-168.18,0.00032255,2]
[311806476,1705420271416,-237.94,0.00032255,2]
[311806477,1705420271426,-150.0,0.00032255,2]
[311806478,1705420271435,-150.0,0.00032255,2]
[311806479,1705420271445,-150.0,0.00032255,2]
[311806480,1705420271455,-401.54,0.00032268,2]
[311806481,1705420271465,-401.54,0.00032268,2]
[311806482,1705420271475,-401.54,0.00032268,2]
[311806483,1705420271485,-401.54,0.00032268,2]
[311806484,1705420271495,-401.54,0.00032268,2]
[311806485,1705420271505,-401.54,0.00032268,2]
[311806486,1705420271515,-400.58,0.00032268,2]
[311806487,1705420271528,-10000.0,0.000323,15]
[311806488,1705420271538,-1500.0,0.00032324,4]
[311806489,1705420271548,-163.1747517,0.00032329,2]
[311806490,1705420271558,-281.14819926,0.00032359,7]
[311806491,1705420271568,-152.17208897,0.00032375,7]
[311806492,1705420271578,-281.14819926,0.00032379,7]
[311806493,1705420271587,-672.06,0.00032417,2]
[311806494,1705420271596,-152.0,0.00032424,15]
[311806495,1705420271606,-151.0,0.00032437,30]
[311806496,1705420271615,-5000.0,0.00032463,7]
[311806497,1705420271625,-2892.66954704,0.00032478,22]
[311806498,1705420271636,-128471.94407116,0.000325,14]
[311806499,1705420271645,-593.0,0.000325,21]
[311806500,1705420271655,-6843.67382476,0.00032547,2]
[311806501,1705420271665,-500.0,0.00032576,10]
[311806502,1705420271675,-500.0,0.00032576,2]
[311806503,1705420271686,-151.0,0.000326,2]
[311806504,1705420271696,-394.0,0.000326,2]
[311806505,1705420271705,-150.0,0.0003263,2]
[311806506,1705420271716,-281.14819926,0.00032647,7]
[311806507,1705420271726,-281.14819926,0.00032657,7]
[311806508,1705420271737,-281.14819946,0.00032662,7]
[311806509,1705420271747,-1012.68600732,0.00032674,5]
[311806510,1705420271757,-160.43807627,0.00032699,7]
[311806511,1705420271767,-35329.57907784,0.000327,4]
[311806512,1705420271778,-220.0,0.000327,2]
[311806513,1705420271788,-219.0,0.000327,2]
[311806514,1705420271798,-152.08,0.000327,2]
[311806515,1705420271808,-152.08,0.000327,2]
[311806516,1705420271818,-152.08,0.000327,2]
[311806517,1705420271828,-152.08,0.000327,2]
[311806518,1705420271838,-152.08,0.000327,2]
[311806519,1705420271848,-152.08,0.000327,2]
[311806520,1705420271858,-152.08,0.000327,2]
[311806521,1705420271868,-152.08,0.000327,2]
[311806522,1705420271877,-152.08,0.000327,2]
[311806523,1705420271887,-152.08,0.000327,2]
[311806524,1705420271897,-152.08,0.000327,2]
[311806525,1705420271906,-152.08,0.000327,2]
[311806526,1705420271916,-157.78,0.000327,2]
[311806527,1705420271926,-157.78,0.000327,2]
[311806528,1705420271935,-157.78,0.000327,2]
[311806529,1705420271945,-157.78,0.000327,2]
[311806530,1705420271954,-157.78,0.000327,2]
[311806531,1705420271965,-157.78,0.000327,2]
[311806532,1705420271975,-157.78,0.000327,2]
[311806533,1705420271985,-157.78,0.000327,2]
[311806534,1705420271995,-157.78,0.000327,2]
[311806535,1705420272005,-157.78,0.000327,2]
[311806536,1705420272014,-157.78,0.000327,2]
[311806537,1705420272023,-157.78,0.000327,2]
[311806538,1705420272032,-25285.71,0.000327,2]
[311806539,1705420272043,-158.06699696,0.00032713,7]
[311806540,1705420272052,-528.0,0.00032731,3]
[311806541,1705420272063,-152.17208897,0.00032769,7]
[311806542,1705420272073,-1152175.69252106,0.0003277,3]
[311806543,1705420272083,-6004.6605356,0.000328,2]
[311806544,1705420272093,-2014.18,0.000328,2]
[311806545,1705420272103,-300.18,0.000328,2]
[311806546,1705420272113,-152.17208909,0.00032842,7]
[311806547,1705420272123,-152.0,0.00032869,16]
[311806548,1705420272132,-276.9441787,0.00032876,7]
[311806549,1705420272142,-217.55624909,0.00032876,7]
[311806550,1705420272151,-593.66224073,0.00032876,7]
[311806551,1705420272161,-500.0,0.00032876,7]
[311806552,1705420272170,-428.03389658,0.00032876,7]
[311806553,1705420272181,-500.0,0.00032876,7]
[311806554,1705420272540,-521.21114542,0.00032876,7]
[311806555,1705420272560,-208.37790238,0.00032876,7]
[311806556,1705420272570,-500.0,0.00032876,7]
[311806557,1705420272583,-500.0,0.00032876,7]
[311806558,1705420272595,-500.0,0.00032876,7]
[311806559,1705420272604,-500.0,0.00032876,7]
[311806560,1705420272614,-500.0,0.00032876,7]
[311806561,1705420272624,-500.0,0.00032876,7]
[311806562,1705420272633,-500.0,0.00032876,7]
[311806563,1705420272643,-500.0,0.00032876,7]
[311806564,1705420272652,-500.0,0.00032876,7]
[311806565,1705420272662,-234.53131082,0.00032876,7]
[311806566,1705420272672,-500.0,0.00032876,7]
[311806567,1705420272681,-641.14885404,0.00032876,7]
[311806568,1705420272691,-500.0,0.00032876,7]
[311806569,1705420272701,-500.0,0.00032876,7]
[311806570,1705420272710,-500.0,0.00032876,7]
[311806571,1705420272720,-500.0,0.00032876,7]
[311806572,1705420272730,-500.0,0.00032876,7]
[311806573,1705420272740,-500.0,0.00032876,7]
[311806574,1705420272750,-500.0,0.00032876,7]
[311806575,1705420272760,-500.0,0.00032876,7]
[311806576,1705420272770,-500.0,0.00032876,7]
[311806577,1705420272780,-500.0,0.00032876,7]
[311806578,1705420272790,-500.0,0.00032876,7]
[311806579,1705420272801,-168.78877283,0.00032876,7]
[311806580,1705420272811,-500.0,0.00032876,7]
[311806581,1705420272821,-500.0,0.00032876,7]
[311806582,1705420272833,-500.0,0.00032876,7]
[311806583,1705420272842,-500.0,0.00032876,7]
[311806584,1705420272852,-500.0,0.00032876,7]
[311806585,1705420272861,-492.68248426,0.00032876,7]
[311806586,1705420272871,-500.0,0.00032876,7]
[311806587,1705420272880,-500.0,0.00032876,7]
[311806588,1705420272890,-500.0,0.00032876,7]
[311806589,1705420272900,-500.0,0.00032876,7]
[311806590,1705420272909,-500.0,0.00032876,7]
[311806591,1705420272918,-500.0,0.00032876,7]
[311806592,1705420272928,-500.0,0.00032876,7]
[311806593,1705420272937,-500.0,0.00032876,7]
[311806594,1705420272947,-187.50194807,0.00032876,7]
[311806595,1705420272958,-500.0,0.00032876,7]
[311806596,1705420272968,-258.05953916,0.00032876,7]
[311806597,1705420272978,-500.0,0.00032876,7]
[311806598,1705420272987,-500.0,0.00032876,7]
[311806599,1705420272997,-202.06894269,0.00032876,7]
[311806600,1705420273006,-500.0,0.00032876,7]
[311806601,1705420273016,-500.0,0.00032876,7]
[311806602,1705420273026,-500.0,0.00032876,7]
[311806603,1705420273036,-500.0,0.00032876,7]
[311806604,1705420273046,-500.0,0.00032876,7]
[311806605,1705420273056,-500.0,0.00032876,7]
[311806606,1705420273066,-500.0,0.00032876,7]
[311806607,1705420273077,-500.0,0.00032876,7]
[311806608,1705420273087,-500.0,0.00032876,7]
[311806609,1705420273097,-500.0,0.00032876,7]
[311806610,1705420273106,-247.33417146,0.00032876,7]
[311806611,1705420273116,-500.0,0.00032876,7]
[311806612,1705420273125,-500.0,0.00032876,7]
[311806613,1705420273135,-1343.04531573,0.00032876,7]
[311806614,1705420273144,-151.00876801,0.00032876,7]
[311806615,1705420273154,-1343.04531573,0.00032876,7]
[311806616,1705420273163,-1343.04531573,0.00032876,7]
[311806617,1705420273173,-1343.04531573,0.00032876,7]
[311806618,1705420273182,-1343.04531573,0.00032876,7]
[311806619,1705420273192,-1343.04531573,0.00032876,7]
[311806620,1705420273201,-1343.04531573,0.00032876,7]
[311806621,1705420273210,-500.0,0.00032876,7]
[311806622,1705420273221,-201.49589082,0.00032876,7]
[311806623,1705420273230,-296.70277333,0.00032876,7]
[311806624,1705420273239,-345.43347115,0.00032876,7]
[311806625,1705420273248,-374.8909304,0.00032876,7]
[311806626,1705420273257,-208.14637306,0.00032876,7]
[311806627,1705420273267,-173.6281595,0.00032876,7]
[311806628,1705420273276,-563.35693761,0.00032876,7]
[311806629,1705420273285,-373.04200089,0.00032876,7]
[311806630,1705420273294,-284.19306077,0.00032876,7]
[311806631,1705420273303,-386.65670584,0.00032876,7]
[311806632,1705420273313,-290.8801187,0.00032876,2]
[311806633,1705420273323,-261.93751998,0.00032876,7]
[311806634,1705420273334,-300.0,0.00032876,7]
[311806635,1705420273345,-258.39598218,0.00032876,7]
[311806636,1705420273354,-467.88664352,0.00032876,7]
[311806637,1705420273363,-372.41929131,0.00032876,7]
[311806638,1705420273373,-500.0,0.00032876,7]
[311806639,1705420273383,-548.29673651,0.00032876,7]
[311806640,1705420273392,-228.52189533,0.00032876,7]
[311806641,1705420273401,-151.57326634,0.00032876,7]
[311806642,1705420273411,-153.84,0.00032877,2]
[311806643,1705420273420,-150.1,0.00032877,2]
[311806644,1705420273431,-55169.32,0.00032877,2]
[311806645,1705420273440,-37014.71,0.00032877,2]
[311806646,1705420273450,-500.0,0.00032877,2]
[311806647,1705420273460,-500.72,0.00032877,2]
[311806648,1705420273469,-150.0,0.00032877,2]
[311806649,1705420273479,-316.03,0.00032877,2]
[311806650,1705420273488,-155.0,0.00032877,2]
[311806651,1705420273498,-621.52044092,0.0003288,7]
[311806652,1705420273507,-621.52044092,0.0003288,7]
[311806653,1705420273517,-621.52044092,0.0003288,7]
[311806654,1705420273526,-621.52044092,0.0003288,7]
[311806655,1705420273535,-621.52044092,0.0003288,7]
[311806656,1705420273545,-621.52044092,0.0003288,7]
[311806657,1705420273554,-621.52044092,0.0003288,7]
[311806658,1705420273564,-621.52044092,0.0003288,7]
[311806659,1705420273574,-621.52044092,0.0003288,7]
[311806660,1705420273586,-621.52044092,0.0003288,7]
[311806661,1705420273597,-621.52044092,0.0003288,7]